[Event "48th Indian U15-ch Open 2023"]
[Site "Jalgaon"]
[Date "2024.02.02"]
[Round "9.7"]
[White "Samyak Dharewa"]
[Black "Sherla Prathamesh"]
[Result "1-0"]
[ECO "C00"]
[WhiteElo "1939"]
[BlackElo "1699"]
[Annotator "NA RC"]
[PlyCount "119"]
[EventDate "2023.12.30"]
[EventType "swiss"]
[EventCountry "IND"]
[SourceTitle "playchess.com"]
[Source "ChessBase"]
[SourceQuality "1"]
[TimeControl "5400+30"]

1. e4 {[%emt 0:00:04]} e6 {[%emt 0:00:15]} 2. Nf3 {[%emt 0:00:08]} d5 {[%emt 0:00:08]} 3. Nc3 {[%emt 0:00:03]} d4 {[%emt 0:00:15]} 4. Ne2 {[%emt 0:00:12]} c5 {[%emt 0:00:13]} 5. c3 {[%emt 0:00:03]} Nf6 {[%emt 0:00:15]} 6. e5 {[%emt 0:00:13]} Nfd7 {[%emt 0:00:08]} 7. cxd4 {[%emt 0:00:08]} cxd4 {[%emt 0:00:12]} 8. Nexd4 {[%emt 0:00:03]} Nxe5 {[%emt 0:00:15]} 9. Bb5+ {[%emt 0:00:11]} Nec6 {[%emt 0:02:15]} 10. O-O {[%emt 0:00:32]} Bd7 {[%emt 0:00:29]} 11. Nc2 {[%emt 0:00:21]} a6 {[%emt 0:06:35]} 12. Be2 {[%emt 0:00:58]} Be7 {[%emt 0:01:12]} 13. d4 {[%emt 0:00:38]} O-O {[%emt 0:00:40]} 14. Bf4 {[%emt 0:05:22]} Bf6 {[%emt 0:03:07]} 15. Bd6 {[%emt 0:15:23]} Ne7 {[%emt 0:04:08]} 16. Ne3 {[%emt 0:00:20]} Ba4 {[%emt 0:07:06]} 17. Qxa4 {[%emt 0:02:20]} Qxd6 {[%emt 0:01:41]} 18. Nc4 {[%emt 0:06:44]} Qd8 {[%emt 0:10:30]} 19. Qb3 {[%emt 0:01:40]} b5 {[%emt 0:09:07]} 20. Nce5 {[%emt 0:00:23]} Nbc6 {[%emt 0:01:38]} 21. Rfd1 {[%emt 0:01:15]} Qd6 {[%emt 0:01:40]} 22. a4 {[%emt 0:02:51]} Na5 {[%emt 0:04:42]} 23. Qd3 {[%emt 0:05:25]} b4 {[%emt 0:02:11]} 24. Rac1 {[%emt 0:03:54]} Rfd8 {[%emt 0:02:33]} 25. Qe4 {[%emt 0:10:04]} (25. Ng4 $14) 25... Rac8 {[%emt 0:08:15]} 26. Rxc8 {[%emt 0:01:12]} Rxc8 {[%emt 0:02:18]} 27. Ng4 {[%emt 0:06:12]} Qd5 $18 {[%emt 0:08:08]} 28. Qf4 {[%emt 0:03:44]} Qf5 {[%emt 0:02:50]} 29. Qg3 {[%emt 0:00:12]} Ng6 {[%emt 0:00:40]} 30. Bxa6 {[%emt 0:02:52]} Qc2 {[%emt 0:01:51]} 31. Ne3 {[%emt 0:01:40]} Qc7 {[%emt 0:07:19]} 32. Bxc8 {[%emt 0:00:15]} Qxc8 {[%emt 0:00:02]} 33. Qd6 {[%emt 0:02:28]} Be7 {[%emt 0:01:07]} 34. Qb6 {[%emt 0:00:39]} Nb3 {[%emt 0:01:02]} 35. a5 {[%emt 0:01:07]} Bd8 {[%emt 0:01:11]} 36. Qxb4 {[%emt 0:00:07]} Nxa5 {[%emt 0:00:07]} 37. d5 {[%emt 0:01:00]} exd5 {[%emt 0:00:31]} 38. Nxd5 {[%emt 0:00:13]} h6 {[%emt 0:00:18]} 39. h4 {[%emt 0:01:43]} Nc6 {[%emt 0:01:01]} 40. Qe4 {[%emt 0:00:24]} Nf8 {[%emt 0:03:19]} 41. Qe8 {[%emt 0:02:04]} Qe6 {[%emt 0:00:54]} 42. Qxe6 {[%emt 0:00:33]} Nxe6 {[%emt 0:00:02]} 43. b4 {[%emt 0:00:28]} Na7 {[%emt 0:00:30]} 44. Nf4 {[%emt 0:03:53]} Bf6 {[%emt 0:01:09]} 45. Rd7 {[%emt 0:02:04]} Nb5 {[%emt 0:01:13]} 46. Nd5 {[%emt 0:00:10]} Kf8 {[%emt 0:00:42]} 47. Rb7 {[%emt 0:02:30]} Nd6 {[%emt 0:00:07]} 48. Rb8+ {[%emt 0:00:11]} Bd8 {[%emt 0:00:02]} 49. b5 {[%emt 0:00:45]} Ke8 {[%emt 0:00:17]} 50. Ne5 {[%emt 0:03:50]} f6 {[%emt 0:00:55]} 51. Nc6 {[%emt 0:03:43]} Kd7 {[%emt 0:00:28]} 52. Ncb4 {[%emt 0:01:03]} Ba5 {[%emt 0:01:04]} 53. Na6 {[%emt 0:00:57]} Bd8 {[%emt 0:01:51]} 54. Ndb4 {[%emt 0:01:58]} Ba5 {[%emt 0:05:17]} 55. h5 {[%emt 0:00:16]} Bd8 {[%emt 0:01:19]} 56. b6 {[%emt 0:00:23]} f5 {[%emt 0:00:54]} 57. b7 {[%emt 0:00:31]} Bc7 {[%emt 0:00:31]} 58. Nxc7 {[%emt 0:01:28]} Kxc7 {[%emt 0:00:06]} 59. Na6+ {[%emt 0:00:04]} Kb6 {[%emt 0:00:09]} 60. Re8 {[%emt 0:01:37]} 1-0

[Event "48th Indian U15-ch Open 2023"]
[Site "Jalgaon"]
[Date "2024.02.02"]
[Round "9.8"]
[White "Nirnay Garg"]
[Black "Mokshith Pasupulety"]
[Result "0-1"]
[ECO "B01"]
[WhiteElo "1894"]
[BlackElo "1478"]
[Annotator "NA RC"]
[PlyCount "106"]
[EventDate "2023.12.30"]
[EventType "swiss"]
[EventCountry "IND"]
[SourceTitle "playchess.com"]
[Source "ChessBase"]
[SourceQuality "1"]
[TimeControl "5400+30"]

1. e4 {[%emt 0:00:03]} d5 {[%emt 0:03:25]} 2. exd5 {[%emt 0:00:14]} Nf6 {[%emt 0:00:06]} 3. c4 {[%emt 0:03:00]} e6 {[%emt 0:00:15]} 4. dxe6 {[%emt 0:00:40]} Bxe6 {[%emt 0:00:09]} 5. d4 {[%emt 0:04:13]} Bb4+ {[%emt 0:00:08]} 6. Bd2 {[%emt 0:04:43]} Qe7 {[%emt 0:00:35]} (6... Bxd2+ $1 $11 7. Qxd2 Qe7) 7. Be2 {[%emt 0:20:24]} Bxc4 {[%emt 0:06:11]} 8. Qa4+ {[%emt 0:01:29]} Nc6 {[%emt 0:00:11]} 9. Bxb4 {[%emt 0:00:09]} Qxb4+ {[%emt 0:00:08]} 10. Qxb4 {[%emt 0:00:06]} Nxb4 {[%emt 0:00:03]} 11. Bxc4 {[%emt 0:00:33]} Nc2+ {[%emt 0:00:12]} 12. Kd2 {[%emt 0:03:14]} Nxa1 {[%emt 0:00:46]} 13. Nc3 {[%emt 0:02:25]} Nd7 {[%emt 0:07:08]} 14. Nd5 {[%emt 0:08:54]} O-O-O {[%emt 0:04:22]} 15. Nf3 {[%emt 0:01:53]} f6 {[%emt 0:02:15]} 16. Rxa1 {[%emt 0:01:23]} c6 {[%emt 0:00:27]} 17. Ne7+ {[%emt 0:03:21]} Kc7 {[%emt 0:00:30]} 18. Kc2 {[%emt 0:03:24]} Nb6 {[%emt 0:01:44]} 19. Bd3 {[%emt 0:07:40]} g6 {[%emt 0:01:20]} 20. Re1 {[%emt 0:10:45]} Rhe8 {[%emt 0:07:34]} 21. d5 {[%emt 0:01:09]} Rd7 {[%emt 0:15:00]} 22. d6+ $1 {[%emt 0:09:54]} Rxd6 {[%emt 0:03:42]} 23. Nf5 {[%emt 0:01:04]} Rxe1 {[%emt 0:01:53]} 24. Nxd6 {[%emt 0:00:50]} Re7 $11 {[%emt 0:02:06]} 25. Nc4 {[%emt 0:01:33]} Nxc4 {[%emt 0:00:48]} 26. Bxc4 {[%emt 0:00:02]} b5 {[%emt 0:00:14]} 27. Bd3 {[%emt 0:00:28]} Kd6 {[%emt 0:01:10]} 28. h4 {[%emt 0:01:04]} f5 {[%emt 0:02:02]} 29. Kd2 {[%emt 0:01:04]} Kc5 {[%emt 0:01:24]} 30. h5 {[%emt 0:00:34]} a6 {[%emt 0:01:42]} 31. h6 {[%emt 0:01:15]} Kd5 {[%emt 0:05:05]} 32. Ng5 {[%emt 0:02:05]} Ke5 {[%emt 0:03:33]} 33. Ke3 {[%emt 0:01:23]} Kf6+ {[%emt 0:00:57]} 34. Kf4 {[%emt 0:00:01]} c5 {[%emt 0:00:25]} 35. g4 {[%emt 0:04:30]} c4 {[%emt 0:05:41]} 36. Bb1 {[%emt 0:01:02]} fxg4 {[%emt 0:01:48]} 37. Be4 {[%emt 0:00:40]} g3 {[%emt 0:00:57]} 38. fxg3 {[%emt 0:00:09]} a5 {[%emt 0:01:11]} 39. Bd5 {[%emt 0:00:14]} Rc7 {[%emt 0:01:46]} 40. Bg8 {[%emt 0:00:59]} b4 {[%emt 0:02:31]} 41. Bxh7 {[%emt 0:01:49]} c3 {[%emt 0:05:02]} 42. Ne4+ {[%emt 0:00:34]} Kf7 {[%emt 0:00:57]} 43. Nd6+ {[%emt 0:00:30]} Kf6 {[%emt 0:00:49]} 44. Ne8+ {[%emt 0:00:28]} Kf7 {[%emt 0:00:04]} 45. Nd6+ {[%emt 0:00:30]} Kf8 {[%emt 0:06:42]} 46. Bxg6 {[%emt 0:00:15]} c2 {[%emt 0:00:10]} 47. Bxc2 {[%emt 0:00:21]} Rxc2 {[%emt 0:00:01]} 48. g4 {[%emt 0:00:54]} Rxb2 {[%emt 0:00:30]} 49. g5 {[%emt 0:00:13]} Rh2 {[%emt 0:04:15]} 50. Kf5 {[%emt 0:00:48]} a4 {[%emt 0:00:15]} 51. Nc4 {[%emt 0:00:32]} a3 {[%emt 0:00:24]} 52. Kf6 {[%emt 0:00:29]} b3 {[%emt 0:00:19]} 53. Nxa3 {[%emt 0:00:32]} bxa2 {[%emt 0:00:20]} 0-1

[Event "48th Indian U15-ch Open 2023"]
[Site "Jalgaon"]
[Date "2024.02.02"]
[Round "9.9"]
[White "Sri Charan Sandipagu"]
[Black "Rohith S"]
[Result "1/2-1/2"]
[ECO "A48"]
[WhiteElo "1660"]
[BlackElo "1757"]
[Annotator "NA RC"]
[PlyCount "93"]
[EventDate "2023.12.30"]
[EventType "swiss"]
[EventCountry "IND"]
[SourceTitle "playchess.com"]
[Source "ChessBase"]
[SourceQuality "1"]
[TimeControl "5400+30"]

1. d4 {[%emt 0:00:23]} Nf6 {[%emt 0:02:02]} 2. Bf4 {[%emt 0:00:12]} g6 {[%emt 0:00:49]} 3. e3 {[%emt 0:00:09]} Bg7 {[%emt 0:00:06]} 4. Nf3 {[%emt 0:00:12]} O-O {[%emt 0:00:11]} 5. Be2 {[%emt 0:00:05]} d6 {[%emt 0:00:08]} 6. h3 {[%emt 0:00:05]} c5 {[%emt 0:02:26]} 7. c3 {[%emt 0:00:08]} Qb6 {[%emt 0:00:53]} 8. Qc1 {[%emt 0:03:36]} Qc7 {[%emt 0:15:29]} 9. Nbd2 {[%emt 0:03:27]} b6 {[%emt 0:03:12]} 10. O-O {[%emt 0:01:17]} Bb7 {[%emt 0:00:19]} 11. Re1 {[%emt 0:00:14]} Ne4 {[%emt 0:01:51]} 12. Nxe4 {[%emt 0:00:48]} Bxe4 {[%emt 0:00:13]} 13. Nd2 {[%emt 0:07:02]} Bc6 {[%emt 0:02:00]} 14. Bf3 {[%emt 0:03:47]} Qb7 {[%emt 0:08:08]} 15. Bxc6 {[%emt 0:00:49]} Qxc6 {[%emt 0:00:22]} 16. Nf3 {[%emt 0:01:42]} Nd7 {[%emt 0:06:52]} 17. e4 {[%emt 0:02:05]} cxd4 {[%emt 0:16:13]} 18. cxd4 {[%emt 0:00:21]} Qxc1 {[%emt 0:00:48]} 19. Raxc1 {[%emt 0:00:07]} Rfc8 {[%emt 0:00:37]} 20. Kf1 {[%emt 0:00:09]} Kf8 {[%emt 0:11:48]} 21. Ke2 {[%emt 0:01:07]} Ke8 {[%emt 0:02:16]} 22. b4 {[%emt 0:16:02]} b5 {[%emt 0:04:39]} 23. Rxc8+ {[%emt 0:02:25]} Rxc8 {[%emt 0:00:02]} 24. Rc1 {[%emt 0:00:08]} Rxc1 {[%emt 0:01:57]} 25. Bxc1 {[%emt 0:00:05]} Nb6 {[%emt 0:04:07]} 26. Kd3 {[%emt 0:00:08]} d5 {[%emt 0:03:36]} 27. exd5 {[%emt 0:02:20]} Nxd5 {[%emt 0:00:12]} 28. a3 {[%emt 0:00:04]} e6 {[%emt 0:01:15]} 29. Ne5 {[%emt 0:01:27]} Bxe5 {[%emt 0:02:11]} 30. dxe5 {[%emt 0:00:06]} Kd7 {[%emt 0:00:53]} 31. Be3 {[%emt 0:00:46]} a6 {[%emt 0:00:32]} 32. g3 {[%emt 0:00:06]} Kc6 {[%emt 0:01:58]} 33. Bd4 {[%emt 0:01:32]} h6 {[%emt 0:04:46]} 34. Ke4 {[%emt 0:00:33]} h5 {[%emt 0:02:35]} 35. f3 {[%emt 0:00:28]} Kd7 {[%emt 0:01:22]} 36. h4 {[%emt 0:00:18]} Kc6 {[%emt 0:00:40]} 37. Kd3 {[%emt 0:00:13]} Ne7 {[%emt 0:00:35]} 38. Ke4 {[%emt 0:00:08]} Nd5 {[%emt 0:00:39]} 39. Kd3 {[%emt 0:07:38]} Kc7 {[%emt 0:00:20]} 40. Ke4 {[%emt 0:00:33]} Kd7 {[%emt 0:00:26]} 41. Kd3 {[%emt 0:00:15]} Kc6 {[%emt 0:00:07]} 42. Ke4 {[%emt 0:00:27]} Kb7 {[%emt 0:00:42]} 43. Kd3 {[%emt 0:01:40]} Kc7 {[%emt 0:00:05]} 44. Ke4 {[%emt 0:00:37]} Kd7 {[%emt 0:00:08]} 45. Kd3 {[%emt 0:03:39]} Ne7 {[%emt 0:01:29]} 46. Ke4 {[%emt 0:00:09]} Nd5 {[%emt 0:00:07]} 47. Kd3 {[%emt 0:00:16]} 1/2-1/2

[Event "48th Indian U15-ch Open 2023"]
[Site "Jalgaon"]
[Date "2024.02.02"]
[Round "9.10"]
[White "Shaik Sumer Arsh"]
[Black "Ghadge Harsh"]
[Result "1/2-1/2"]
[ECO "E92"]
[WhiteElo "2255"]
[BlackElo "1663"]
[Annotator "RC"]
[PlyCount "76"]
[EventDate "2023.12.30"]
[EventType "swiss"]
[EventCountry "IND"]
[SourceTitle "playchess.com"]
[Source "ChessBase"]
[SourceQuality "1"]
[TimeControl "5400+30"]

1. d4 {[%emt 0:00:03]} Nf6 {[%emt 0:00:04]} 2. c4 {[%emt 0:00:05]} g6 {[%emt 0:00:02]} 3. Nc3 {[%emt 0:00:06]} Bg7 {[%emt 0:00:05]} 4. e4 {[%emt 0:00:08]} d6 {[%emt 0:00:03]} 5. Nf3 {[%emt 0:00:05]} O-O {[%emt 0:00:05]} 6. Be2 {[%emt 0:00:05]} e5 {[%emt 0:00:04]} 7. Be3 {[%emt 0:00:05]} exd4 {[%emt 0:00:05]} 8. Nxd4 {[%emt 0:00:06]} Re8 {[%emt 0:00:02]} 9. f3 {[%emt 0:00:10]} c6 {[%emt 0:00:03]} 10. Bf2 {[%emt 0:00:05]} d5 {[%emt 0:06:12]} 11. exd5 {[%emt 0:00:06]} cxd5 {[%emt 0:00:40]} 12. O-O {[%emt 0:00:06]} Nc6 {[%emt 0:08:35]} 13. c5 {[%emt 0:00:06]} Nh5 {[%emt 0:10:08]} 14. Qd2 {[%emt 0:00:10]} Nxd4 {[%emt 0:19:23]} 15. Bxd4 {[%emt 0:00:08]} Bxd4+ {[%emt 0:02:04]} 16. Qxd4 {[%emt 0:00:05]} Qf6 {[%emt 0:01:01]} 17. Rfd1 {[%emt 0:14:01]} Qg5 {[%emt 0:06:57]} 18. Bf1 {[%emt 0:03:43]} Be6 {[%emt 0:10:47]} 19. Re1 {[%emt 0:07:07]} Ng7 {[%emt 0:08:05]} 20. Rad1 {[%emt 0:14:06]} Rad8 {[%emt 0:05:10]} 21. Qd2 {[%emt 0:17:58]} Qh4 {[%emt 0:05:05]} 22. Nb5 {[%emt 0:01:24]} Nf5 {[%emt 0:00:45]} 23. Nd4 {[%emt 0:04:08]} Nxd4 {[%emt 0:02:59]} 24. Qxd4 {[%emt 0:00:10]} Qxd4+ {[%emt 0:00:29]} 25. Rxd4 {[%emt 0:00:03]} Kg7 {[%emt 0:01:59]} 26. Red1 {[%emt 0:02:01]} Kf6 {[%emt 0:02:35]} 27. b4 {[%emt 0:00:27]} Rc8 {[%emt 0:00:27]} 28. Bb5 {[%emt 0:06:31]} Re7 {[%emt 0:00:56]} 29. Kf2 {[%emt 0:01:04]} b6 {[%emt 0:01:32]} 30. Rc1 {[%emt 0:05:26]} bxc5 {[%emt 0:01:38]} 31. bxc5 {[%emt 0:00:17]} Rec7 {[%emt 0:00:07]} 32. c6 {[%emt 0:00:46]} Rb8 {[%emt 0:00:04]} 33. Be2 {[%emt 0:09:31]} Rb6 {[%emt 0:02:21]} 34. Ra4 {[%emt 0:00:05]} Rbxc6 {[%emt 0:00:38]} 35. Rxc6 {[%emt 0:00:04]} Rxc6 {[%emt 0:00:02]} 36. Rxa7 {[%emt 0:00:03]} Rc2 {[%emt 0:00:05]} 37. a4 {[%emt 0:02:44]} d4 {[%emt 0:00:03]} 38. Ke1 {[%emt 0:00:30]} Bf5 {[%emt 0:01:19]} 1/2-1/2

[Event "48th Indian U15-ch Open 2023"]
[Site "Jalgaon"]
[Date "2024.01.03"]
[Round "10.1"]
[White "Md Imran"]
[Black "Daksh Goyal"]
[Result "1/2-1/2"]
[ECO "D02"]
[WhiteElo "2174"]
[BlackElo "1814"]
[Annotator "RC"]
[PlyCount "76"]
[EventDate "2023.12.30"]
[EventType "swiss"]
[EventCountry "IND"]
[SourceTitle "playchess.com"]
[Source "ChessBase"]
[SourceQuality "1"]
[TimeControl "5400+30"]

1. d4 {[%emt 0:00:01]} d5 {[%emt 0:00:28]} 2. Nf3 {[%emt 0:01:32]} Nf6 {[%emt 0:01:22]} 3. Bf4 {[%emt 0:00:46]} e6 {[%emt 0:00:52]} 4. e3 {[%emt 0:00:11]} Be7 {[%emt 0:00:40]} 5. Nbd2 {[%emt 0:00:47]} Nbd7 {[%emt 0:01:50]} 6. h3 {[%emt 0:00:28]} c5 {[%emt 0:09:05]} 7. c3 {[%emt 0:01:47]} O-O {[%emt 0:01:02]} 8. Bd3 {[%emt 0:00:04]} c4 {[%emt 0:00:20]} 9. Bc2 {[%emt 0:00:16]} b5 {[%emt 0:00:02]} 10. e4 {[%emt 0:01:41]} dxe4 {[%emt 0:00:51]} 11. Nxe4 {[%emt 0:00:14]} Bb7 {[%emt 0:01:05]} 12. Qe2 {[%emt 0:04:14]} Nxe4 {[%emt 0:07:00]} 13. Bxe4 {[%emt 0:00:02]} Bxe4 {[%emt 0:00:21]} 14. Qxe4 {[%emt 0:00:02]} Nf6 {[%emt 0:03:44]} 15. Qe2 {[%emt 0:00:12]} Nd5 {[%emt 0:06:10]} 16. Bd2 {[%emt 0:00:19]} Qc7 {[%emt 0:04:25]} 17. O-O {[%emt 0:00:10]} a5 {[%emt 0:06:10]} 18. Ne5 {[%emt 0:03:42]} Bd6 {[%emt 0:05:25]} 19. f4 {[%emt 0:00:40]} Rfe8 {[%emt 0:07:49]} 20. Qf3 {[%emt 0:02:17]} f6 {[%emt 0:07:42]} 21. Ng4 {[%emt 0:00:18]} f5 {[%emt 0:00:40]} 22. Ne3 {[%emt 0:01:27]} Nxf4 {[%emt 0:13:34]} 23. Nxf5 {[%emt 0:01:27]} exf5 {[%emt 0:00:41]} 24. Bxf4 {[%emt 0:00:02]} Bxf4 {[%emt 0:00:22]} 25. Qxf4 {[%emt 0:00:03]} Qxf4 {[%emt 0:00:38]} 26. Rxf4 {[%emt 0:00:10]} Re2 {[%emt 0:06:29]} 27. Rf2 {[%emt 0:02:24]} Rae8 {[%emt 0:02:10]} 28. a4 {[%emt 0:04:38]} b4 {[%emt 0:01:08]} 29. cxb4 {[%emt 0:03:04]} axb4 {[%emt 0:00:39]} 30. a5 {[%emt 0:01:33]} c3 {[%emt 0:05:33]} 31. bxc3 {[%emt 0:00:34]} bxc3 {[%emt 0:00:59]} 32. Rxf5 {[%emt 0:02:41]} Rd2 {[%emt 0:00:41]} 33. a6 {[%emt 0:04:01]} c2 {[%emt 0:00:37]} 34. a7 {[%emt 0:01:36]} Rxd4 {[%emt 0:02:50]} 35. a8=Q {[%emt 0:01:10]} c1=Q+ {[%emt 0:00:09]} 36. Rxc1 {[%emt 0:00:30]} Rxa8 {[%emt 0:00:03]} 37. Rc7 {[%emt 0:00:11]} Rd1+ {[%emt 0:00:40]} 38. Kh2 {[%emt 0:00:05]} Rd6 {[%emt 0:00:12]} 1/2-1/2

[Event "48th Indian U15-ch Open 2023"]
[Site "Jalgaon"]
[Date "2024.01.03"]
[Round "10.2"]
[White "Bivor Adak"]
[Black "Jihan Tejas Shah"]
[Result "0-1"]
[ECO "B38"]
[WhiteElo "1791"]
[BlackElo "1891"]
[Annotator "NA RC"]
[PlyCount "94"]
[EventDate "2023.12.30"]
[EventType "swiss"]
[EventCountry "IND"]
[SourceTitle "playchess.com"]
[Source "ChessBase"]
[SourceQuality "1"]
[TimeControl "5400+30"]

1. e4 {[%emt 0:00:44]} c5 {[%emt 0:00:08]} 2. Nf3 {[%emt 0:00:59]} Nc6 {[%emt 0:00:12]} 3. d4 {[%emt 0:01:28]} cxd4 {[%emt 0:00:03]} 4. Nxd4 {[%emt 0:00:14]} g6 {[%emt 0:00:02]} 5. c4 {[%emt 0:01:19]} Bg7 {[%emt 0:00:07]} 6. Be3 {[%emt 0:00:16]} Qb6 {[%emt 0:00:03]} 7. Nb3 {[%emt 0:01:54]} Qd8 {[%emt 0:01:13]} 8. Qd2 {[%emt 0:01:07]} Nf6 {[%emt 0:00:08]} 9. f3 {[%emt 0:00:33]} d6 {[%emt 0:01:14]} 10. Nc3 {[%emt 0:01:32]} Be6 {[%emt 0:04:56]} 11. Be2 {[%emt 0:00:56]} a5 {[%emt 0:02:21]} 12. Nb5 {[%emt 0:02:37]} O-O {[%emt 0:03:31]} 13. N3d4 {[%emt 0:02:40]} Bd7 {[%emt 0:04:09]} 14. O-O {[%emt 0:02:06]} a4 {[%emt 0:04:29]} 15. b4 {[%emt 0:05:28]} axb3 {[%emt 0:09:46]} 16. axb3 {[%emt 0:00:12]} Nxd4 {[%emt 0:06:34]} 17. Nxd4 {[%emt 0:00:27]} Qc7 {[%emt 0:00:46]} 18. Rfc1 {[%emt 0:10:03]} Rfc8 {[%emt 0:03:52]} 19. b4 {[%emt 0:13:22]} Be8 {[%emt 0:06:35]} 20. Rab1 {[%emt 0:13:19]} Qd8 {[%emt 0:08:24]} 21. Bf1 {[%emt 0:12:58]} Nd7 {[%emt 0:03:45]} 22. Nb3 {[%emt 0:04:02]} Ra3 {[%emt 0:04:56]} 23. Bd4 {[%emt 0:03:11]} Bxd4+ {[%emt 0:06:07]} 24. Qxd4 {[%emt 0:00:23]} b6 {[%emt 0:03:11]} 25. Qb2 {[%emt 0:01:12]} Raa8 {[%emt 0:01:06]} 26. Ra1 {[%emt 0:00:17]} Rxa1 {[%emt 0:00:41]} 27. Rxa1 {[%emt 0:00:18]} Qc7 {[%emt 0:01:41]} 28. Qd4 {[%emt 0:00:56]} f6 {[%emt 0:02:04]} 29. Rc1 {[%emt 0:03:50]} Bf7 {[%emt 0:00:19]} 30. Be2 {[%emt 0:02:02]} Ne5 {[%emt 0:01:29]} 31. Nd2 {[%emt 0:00:12]} g5 {[%emt 0:01:30]} 32. g3 {[%emt 0:01:08]} Kg7 {[%emt 0:00:48]} 33. Kf2 {[%emt 0:00:41]} Nc6 {[%emt 0:01:34]} 34. Qc3 {[%emt 0:00:08]} Qd7 {[%emt 0:00:33]} 35. Kg2 {[%emt 0:01:01]} h5 {[%emt 0:01:48]} 36. Nf1 {[%emt 0:01:20]} e5 {[%emt 0:02:38]} 37. Ne3 {[%emt 0:02:00]} Nd4 {[%emt 0:00:08]} 38. Qd3 {[%emt 0:00:16]} Qa4 {[%emt 0:01:36]} 39. b5 {[%emt 0:02:31]} Qa2 {[%emt 0:01:16]} 40. Kf2 {[%emt 0:02:23]} Be6 {[%emt 0:00:31]} 41. Rc3 {[%emt 0:02:09]} Qa1 {[%emt 0:03:07]} 42. Nd1 $2 {[%emt 0:01:51]} (42. Bd1) 42... Ra8 {[%emt 0:00:22]} 43. Kg1 {[%emt 0:02:41]} Ra2 {[%emt 0:01:12]} 44. Bf1 {[%emt 0:00:06]} g4 {[%emt 0:00:24]} 45. fxg4 {[%emt 0:01:31]} hxg4 {[%emt 0:00:10]} 46. Kh1 {[%emt 0:00:25]} f5 {[%emt 0:05:47]} 47. Ne3 {[%emt 0:02:38]} fxe4 {[%emt 0:00:16]} 0-1

[Event "48th Indian U15-ch Open 2023"]
[Site "Jalgaon"]
[Date "2024.01.03"]
[Round "10.3"]
[White "Bhoir Paras Dilip"]
[Black "Vatsal Singla"]
[Result "1-0"]
[ECO "B92"]
[WhiteElo "1808"]
[BlackElo "1714"]
[Annotator "NA RC"]
[PlyCount "133"]
[EventDate "2023.12.30"]
[EventType "swiss"]
[EventCountry "IND"]
[SourceTitle "playchess.com"]
[Source "ChessBase"]
[SourceQuality "1"]
[TimeControl "5400+30"]

1. e4 {[%emt 0:00:03]} c5 {[%emt 0:00:01]} 2. Nf3 {[%emt 0:00:08]} d6 {[%emt 0:00:05]} 3. d4 {[%emt 0:00:02]} cxd4 {[%emt 0:00:05]} 4. Nxd4 {[%emt 0:00:03]} Nf6 {[%emt 0:00:07]} 5. Nc3 {[%emt 0:00:02]} a6 {[%emt 0:00:05]} 6. Be2 {[%emt 0:00:03]} e5 {[%emt 0:00:05]} 7. Nb3 {[%emt 0:00:03]} Be7 {[%emt 0:00:04]} 8. Bg5 {[%emt 0:00:05]} Be6 {[%emt 0:00:58]} 9. Bxf6 {[%emt 0:00:06]} Bxf6 {[%emt 0:00:07]} 10. Qd3 {[%emt 0:00:07]} O-O {[%emt 0:02:16]} 11. O-O-O {[%emt 0:00:04]} Qb6 {[%emt 0:03:52]} 12. Rhf1 {[%emt 0:14:07]} Nc6 {[%emt 0:01:15]} 13. Qxd6 {[%emt 0:10:42]} Rfd8 {[%emt 0:21:17]} 14. Qc5 {[%emt 0:04:05]} Qxc5 {[%emt 0:03:39]} 15. Nxc5 {[%emt 0:00:16]} Be7 {[%emt 0:06:34]} 16. Nxb7 {[%emt 0:09:50]} Rdb8 {[%emt 0:09:32]} 17. Nd6 {[%emt 0:00:36]} Nd4 {[%emt 0:01:14]} 18. Nf5 {[%emt 0:00:15]} Nxf5 {[%emt 0:01:27]} 19. exf5 {[%emt 0:00:17]} Bxf5 {[%emt 0:00:02]} 20. Rd5 {[%emt 0:12:04]} Bf6 {[%emt 0:06:55]} 21. Ra5 {[%emt 0:07:24]} Kf8 {[%emt 0:25:13]} 22. f4 {[%emt 0:03:49]} Ra7 {[%emt 0:03:14]} 23. Bc4 {[%emt 0:04:31]} g6 {[%emt 0:09:56]} 24. fxe5 {[%emt 0:05:15]} Bg5+ {[%emt 0:00:32]} 25. Kb1 {[%emt 0:00:09]} Bd2 {[%emt 0:00:01]} 26. Bb3 {[%emt 0:00:25]} Rc8 {[%emt 0:01:15]} 27. Rf3 {[%emt 0:02:22]} Kg7 {[%emt 0:00:21]} 28. Rd5 {[%emt 0:01:43]} Bg5 {[%emt 0:00:02]} 29. h3 {[%emt 0:02:29]} Re7 {[%emt 0:01:49]} 30. g4 {[%emt 0:02:50]} Bd7 {[%emt 0:00:00]} 31. Rd6 {[%emt 0:00:59]} Bc6 {[%emt 0:00:34]} 32. Rf1 {[%emt 0:02:45]} a5 {[%emt 0:01:08]} 33. Bd5 {[%emt 0:01:49]} Be8 {[%emt 0:01:16]} 34. e6 {[%emt 0:00:53]} fxe6 {[%emt 0:00:04]} 35. Bxe6 {[%emt 0:01:32]} Rc6 {[%emt 0:00:02]} 36. Rxc6 {[%emt 0:02:04]} Bxc6 {[%emt 0:00:01]} 37. Bd5 {[%emt 0:00:08]} Be8 {[%emt 0:00:03]} 38. Ne4 {[%emt 0:00:13]} Be3 {[%emt 0:02:26]} 39. a3 {[%emt 0:01:11]} Bb5 {[%emt 0:01:32]} 40. Rd1 {[%emt 0:02:03]} Rd7 {[%emt 0:00:39]} 41. b3 {[%emt 0:00:24]} Bf4 {[%emt 0:00:24]} 42. Nc5 {[%emt 0:00:18]} Be2 {[%emt 0:00:24]} 43. Re1 {[%emt 0:04:49]} Bg3 {[%emt 0:00:41]} 44. Rxe2 {[%emt 0:00:10]} Rxd5 {[%emt 0:00:02]} 45. Nd3 {[%emt 0:00:14]} Kf6 {[%emt 0:00:06]} 46. Re3 {[%emt 0:00:18]} Bd6 {[%emt 0:00:05]} 47. c4 {[%emt 0:00:24]} Rd4 {[%emt 0:00:33]} 48. Kb2 {[%emt 0:00:10]} Bf8 {[%emt 0:00:18]} 49. Kc3 $18 {[%emt 0:00:24]} Rd8 {[%emt 0:00:06]} 50. b4 {[%emt 0:00:26]} Kg5 {[%emt 0:00:37]} 51. Nc5 {[%emt 0:02:00]} axb4+ {[%emt 0:00:40]} 52. axb4 {[%emt 0:00:05]} Bxc5 {[%emt 0:00:49]} 53. bxc5 {[%emt 0:00:04]} Kf4 {[%emt 0:01:06]} 54. Re7 {[%emt 0:00:42]} h5 {[%emt 0:00:00]} 55. gxh5 {[%emt 0:00:18]} gxh5 {[%emt 0:00:00]} 56. c6 {[%emt 0:00:41]} Kg3 {[%emt 0:00:39]} 57. c7 {[%emt 0:00:05]} Rc8 {[%emt 0:00:20]} 58. Kb4 {[%emt 0:00:16]} Kxh3 {[%emt 0:00:11]} 59. Kb5 {[%emt 0:00:09]} h4 {[%emt 0:00:05]} 60. Kc6 {[%emt 0:00:03]} Kg2 {[%emt 0:00:05]} 61. Kb7 {[%emt 0:00:04]} Rg8 {[%emt 0:00:23]} 62. c8=Q {[%emt 0:00:07]} Rxc8 {[%emt 0:00:06]} 63. Kxc8 {[%emt 0:00:03]} h3 {[%emt 0:00:04]} 64. Rh7 {[%emt 0:00:05]} h2 {[%emt 0:00:04]} 65. c5 {[%emt 0:00:02]} h1=Q {[%emt 0:00:05]} 66. Rxh1 {[%emt 0:00:04]} Kxh1 {[%emt 0:00:06]} 67. c6 {[%emt 0:00:01]} 1-0